bitfinex/quotes_SOLUSD_20241103
["timestamp","ask_amount","ask_price","bid_price","bid_amount"]
[1730651924330,21.03499384,159.9,159.84,15.6406]
[1730651924533,27.28899384,159.9,159.84,21.8968]
[1730651924833,6.254,159.9,159.84,42.93179384]
[1730651925525,27.28959384,159.88,159.82,21.03499384]
[1730651925729,21.03499384,159.87,159.81,21.9004]
[1730651926112,27.28959384,159.88,159.81,42.93539384]
[1730651927537,70.3112443,159.91,159.84,21.03499384]
[1730651927538,20.0,159.9,159.84,21.03499384]
[1730651928315,21.34623814,159.91,159.86,21.03499384]
[1730651928316,0.3112443,159.91,159.86,21.03499384]
[1730651928639,0.3112443,159.91,159.81,0.12549]
[1730651928640,0.3112443,159.91,159.87,21.03499384]
[1730651929314,0.3112443,159.91,159.9,21.03499384]
[1730651929508,0.3112443,159.91,159.9,27.28889384]
[1730651929742,0.3112443,159.91,159.89,15.6353]
[1730651929910,0.3112443,159.91,159.87,27.28999384]
[1730651930332,15.8745,159.9,159.82,21.03499384]
[1730651930540,21.03499384,159.87,159.81,21.8998]
[1730651930843,21.03499384,159.88,159.81,42.93479384]
[1730651931507,6.2549,159.88,159.82,21.03499384]
[1730651931734,21.03499384,159.87,159.81,21.8998]
[1730651931920,21.03499384,159.85,159.81,21.8998]
[1730651932843,21.03499384,159.85,159.81,15.6428]
[1730651933139,21.03499384,159.86,159.81,15.6428]
[1730651934135,27.29029384,159.87,159.81,15.6428]
[1730651934339,21.03499384,159.86,159.81,15.6428]
[1730651935614,6.2553,159.87,159.79,6.2582]
[1730651935615,21.03499384,159.84,159.79,6.2582]
[1730651936123,21.03499384,159.85,159.79,21.9037]
[1730651936422,21.03499384,159.85,159.79,42.93869384]
[1730651936619,21.03499384,159.86,159.8,21.03499384]
[1730651937835,21.03499384,159.86,159.81,6.2574]
[1730651939523,21.03499384,159.85,159.79,36.68049384]
[1730651939741,21.03499384,159.85,159.79,42.93869384]
[1730651939920,21.03499384,159.85,159.79,21.9037]
[1730651940122,6.2555,159.86,159.79,21.9037]
[1730651940123,21.03499384,159.84,159.79,21.9037]
[1730651940941,21.03499384,159.85,159.79,21.9037]
[1730651941318,27.29109384,159.85,159.79,21.9037]
[1730651941720,27.29109384,159.85,159.78,52.32799384]
[1730651941721,21.03499384,159.8,159.74,21.03499384]
[1730651942038,13.18017487,159.78,159.73,21.9119]
[1730651942243,13.18017487,159.8,159.74,13.18017487]
[1730651943244,15.8745,159.81,159.77,13.18017487]
[1730651943425,15.8745,159.81,159.76,13.18017487]
[1730651943756,15.8745,159.81,159.75,13.18017487]
[1730651944046,21.0739818,159.84,159.78,21.0739818]
[1730651944217,21.0739818,159.83,159.77,21.0739818]
[1730651945116,27.3305818,159.83,159.78,6.2586]
[1730651945320,27.3305818,159.83,159.77,21.9061]
[1730651946743,27.3305818,159.83,159.77,36.7211818]
[1730651947459,27.3305818,159.83,159.77,15.6472]
[1730651947745,27.3305818,159.83,159.77,21.9061]
[1730651949245,6.2566,159.83,159.77,36.7211818]
[1730651950446,21.0739818,159.81,159.75,6.2597]
[1730651950745,27.3305818,159.83,159.76,21.0739818]
[1730651951131,20.0,159.83,159.78,21.0739818]
[1730651951332,49.4279818,159.85,159.79,21.0739818]
[1730651951525,21.8301,159.85,159.8,21.0739818]
[1730651951852,21.8301,159.85,159.76,6.1199]
[1730651951853,21.8301,159.85,159.79,21.0739818]
[1730651952543,42.9040818,159.85,159.8,6.2578]
[1730651953552,42.9040818,159.85,159.79,42.9775818]
[1730651953859,22.28539,159.89,159.79,42.9775818]
[1730651953860,15.5742,159.89,159.84,21.0739818]
[1730651954033,15.5742,159.89,159.86,21.0739818]
[1730651954425,15.5742,159.89,159.85,21.0739818]
[1730651955551,15.5742,159.89,159.86,6.2554]
[1730651956150,0.3112443,159.91,159.86,6.2554]
[1730651956353,0.3112443,159.91,159.86,42.9679818]
[1730651956834,6.5648443,159.91,159.86,21.894]
[1730651957343,6.5648443,159.91,159.86,42.9679818]
[1730651957538,0.3112443,159.91,159.89,21.0739818]
[1730651957758,0.3112443,159.91,159.9,21.0739818]
[1730651958062,0.3112443,159.91,159.89,21.0739818]
[1730651958848,0.3112443,159.91,159.87,21.0739818]
[1730651959051,0.3112443,159.91,159.85,6.2672]
[1730651959052,0.3112443,159.91,159.89,21.0739818]
[1730651959729,0.3112443,159.91,159.9,6.2539]
[1730651960533,0.3112443,159.91,159.89,15.6354]
[1730651960732,0.3112443,159.91,159.89,42.9635818]
[1730651960929,0.3112443,159.91,159.89,21.8896]
[1730651962551,0.3112443,159.91,159.9,21.0739818]
[1730651963449,0.3112443,159.91,159.89,21.8896]
[1730651963756,0.3112443,159.91,159.9,21.0739818]
[1730651964056,0.3112443,159.91,159.89,42.9635818]
[1730651964257,0.3112443,159.91,159.9,21.0739818]
[1730651964687,0.3112443,159.91,159.9,27.3278818]
[1730651965941,0.3112443,159.91,159.9,47.3278818]
[1730651966147,0.3112443,159.91,159.9,39.40120961]
[1730651966354,0.3112443,159.91,159.9,19.40120961]
[1730651966560,0.3112443,159.91,159.9,39.65218961]
[1730651966738,0.3112443,159.91,159.9,39.87767961]
[1730651967066,0.3112443,159.99,159.92,0.1]
[1730651967356,0.3112443,159.99,159.97,13.14730961]
[1730651967734,0.3112443,159.99,159.96,13.14730961]
[1730651967932,0.3112443,159.99,159.95,13.14730961]
[1730651968135,0.3112443,159.99,159.96,21.8804]
[1730651968347,0.3112443,159.99,159.96,35.02770961]
[1730651968788,0.3112443,159.99,159.96,21.8804]
[1730651969781,0.3112443,159.99,159.96,35.02770961]
[1730651972068,0.3112443,159.99,159.98,13.14730961]
[1730651972273,0.3112443,159.99,159.98,19.39800961]
[1730651972591,0.3112443,159.99,159.98,39.39800961]
[1730651973086,0.3112443,160.07,159.99,20.25098]
[1730651973287,0.3112443,160.07,160.05,13.14730961]
[1730651973467,0.3112443,160.07,160.06,13.14730961]
[1730651973671,0.3112443,160.07,160.05,13.14730961]
[1730651973974,0.3112443,160.07,160.04,13.14730961]
[1730651974375,0.3112443,160.07,160.04,19.39540961]
[1730651976076,0.3112443,160.07,160.05,13.14730961]
[1730651976275,0.3112443,160.07,160.04,35.01640961]
[1730651976985,0.3112443,160.07,160.05,13.14730961]
[1730651977194,0.3112443,160.07,160.04,35.01640961]
[1730651978488,0.3112443,160.07,160.01,35.02090961]
[1730651979567,0.3112443,160.07,160.03,13.14730961]
[1730651979764,13.14730961,160.06,160.01,21.8736]
[1730651980591,33.45855391,160.07,160.01,21.8736]
[1730651981991,0.3112443,160.07,160.06,13.14730961]
[1730651982568,0.3112443,160.07,160.05,13.14730961]
[1730651982773,13.14730961,160.06,159.94,6.5185]
[1730651982992,13.14730961,160.03,159.97,21.879]
[1730651983292,13.14730961,160.04,159.97,35.02630961]
[1730651983512,13.14730961,160.02,159.97,15.6279]
[1730651983693,13.14730961,160.01,159.97,15.6279]
[1730651984402,13.14730961,160.03,159.97,15.6279]
[1730651985803,13.14730961,160.03,159.97,21.879]
[1730651986688,13.14730961,160.05,159.98,13.14730961]
[1730651987117,30.04765391,160.07,160.0,13.14730961]
[1730651987289,33.14730961,160.06,160.0,13.14730961]
[1730651987813,33.14730961,160.06,160.01,6.2496]
[1730651988306,33.14730961,160.06,160.05,3.08002279]
[1730651989816,16.9003443,160.07,160.05,3.08002279]
[1730651990008,16.9003443,160.07,160.05,9.32802279]
[1730651992290,13.14730961,160.06,160.05,3.08002279]
[1730651992500,33.14730961,160.06,160.05,3.08002279]
[1730651993314,56.92419361,160.06,160.05,3.08002279]
[1730651994401,63.17179361,160.06,160.05,3.08002279]
[1730652001319,63.54826361,160.06,160.05,3.08002279]
[1730652001498,13.14730961,160.01,159.96,6.2513]
[1730652001698,43.776884,160.04,159.96,6.2513]
[1730652001699,13.14730961,160.02,159.96,19.39860961]
[1730652001903,13.14730961,160.02,159.96,35.02750961]
[1730652002119,13.14730961,160.03,159.97,13.14730961]
[1730652002423,20.0,160.04,159.97,13.14730961]
[1730652002424,13.14730961,160.04,159.97,13.14730961]
[1730652002630,13.14730961,160.04,159.98,21.8776]
[1730652002830,13.14730961,160.01,159.98,21.8776]
[1730652003215,13.14730961,160.02,159.98,21.8776]
[1730652003927,4.0,160.0,159.98,15.6269]
[1730652007328,4.0,160.0,159.95,44.40630961]
[1730652008019,4.0,160.0,159.96,13.14730961]
[1730652008932,4.0,160.0,159.97,21.879]
[1730652011017,4.0,160.0,159.97,15.6279]
[1730652011611,17.14730961,160.0,159.97,15.6279]
[1730652011823,13.14730961,159.98,159.96,6.2515]
[1730652012127,17.14730961,160.0,159.96,6.2515]
[1730652012933,17.14730961,160.0,159.94,15.6303]
[1730652013136,17.14730961,160.0,159.94,21.8826]
[1730652013727,13.14730961,159.98,159.94,15.6303]
[1730652014040,13.14730961,159.95,159.94,15.6303]
[1730652014215,13.14730961,159.96,159.94,15.6303]
[1730652015145,13.14730961,159.98,159.94,15.6303]
[1730652015632,22.6534,159.99,159.94,15.6303]
[1730652015633,13.14730961,159.97,159.94,15.6303]
[1730652016533,13.14730961,159.98,159.94,15.6303]
[1730652017615,13.14730961,159.97,159.94,15.6303]
[1730652020144,29.55020961,159.99,159.94,15.6303]
[1730652020433,16.4029,159.99,159.95,13.14730961]
[1730652020645,4.0,160.0,159.96,13.14730961]
[1730652021839,4.0,160.0,159.99,13.14730961]
[1730652022010,4.0,160.0,159.99,14.90435359]
[1730652022415,4.0,160.0,159.99,35.00435359]
[1730652024124,4.0,160.0,159.99,39.73109903]
[1730652025534,4.0,160.0,159.99,39.95658903]
[1730652025745,0.3112443,160.07,160.02,20.35098]
[1730652025941,0.3112443,160.07,160.06,13.12981903]
[1730652026524,0.3112443,160.07,160.06,13.38079903]
[1730652026732,0.3112443,160.07,160.06,57.48317303]
[1730652027043,0.3112443,160.07,160.06,57.38317303]
[1730652027255,0.3112443,160.07,160.06,57.28317303]
[1730652027538,0.3112443,160.07,160.06,39.85388903]
[1730652028118,0.3112443,160.07,160.06,39.75388903]
[1730652028944,0.3112443,160.07,160.06,39.85388903]
[1730652030232,0.3112443,160.07,160.06,39.62839903]
[1730652030540,0.3112443,160.07,160.06,39.37741903]
[1730652030737,0.3112443,160.07,160.06,39.47741903]
[1730652031326,0.3112443,160.07,160.06,39.37741903]
[1730652031523,0.3112443,160.07,160.06,39.47741903]
[1730652031747,0.3112443,160.07,160.06,39.85388903]
[1730652031960,0.3112443,160.07,160.06,19.37741903]
[1730652032271,0.3112443,160.07,160.05,21.8677]
[1730652032456,0.3112443,160.07,160.06,13.12981903]
[1730652033546,0.3112443,160.07,160.06,19.37741903]
[1730652034550,0.3112443,160.07,160.05,28.74951903]
[1730652034751,0.3112443,160.07,160.06,13.12981903]
[1730652036153,0.3112443,160.07,160.06,13.38079903]
[1730652036647,0.3112443,160.07,160.06,19.62839903]
[1730652036851,0.3112443,160.07,160.04,6.2481]
[1730652037061,13.12981903,160.06,160.02,21.8719]
[1730652037361,13.44106333,160.07,160.02,21.8719]
[1730652037849,13.12981903,160.06,160.02,21.8719]
[1730652038234,6.5586443,160.07,160.02,21.8719]
[1730652038235,13.44106333,160.07,160.02,21.8719]
[1730652038636,13.44106333,160.07,160.02,15.6228]
[1730652038858,13.12981903,160.06,160.02,15.6228]
[1730652039733,13.44106333,160.07,160.02,15.6228]
[1730652039934,0.3112443,160.07,160.02,28.75261903]
[1730652040435,0.3112443,160.07,160.02,15.6228]
[1730652042354,0.3112443,160.07,160.02,21.872]
[1730652044542,13.44106333,160.07,160.02,21.872]
[1730652044744,13.12981903,160.06,160.02,21.872]
[1730652045835,13.12981903,160.06,160.02,15.6228]
[1730652046357,0.3112443,160.07,160.02,15.6228]
[1730652046944,13.44106333,160.07,160.02,15.6228]
[1730652047837,0.3112443,160.07,160.03,13.12981903]
[1730652048763,0.3112443,160.07,160.02,66.24781903]
[1730652050147,13.12981903,160.06,160.02,21.872]
[1730652050541,13.44106333,160.07,160.02,21.872]
[1730652051261,0.3112443,160.07,160.03,13.12981903]
[1730652051466,0.3112443,160.07,160.05,13.12981903]
[1730652052274,0.3112443,160.07,160.06,6.2476]
[1730652053353,0.3112443,160.07,160.06,19.37741903]
[1730652054666,13.44106333,160.15,160.09,0.35098]
[1730652054667,0.3112443,160.15,160.09,0.35098]
[1730652054873,0.3112443,160.15,160.14,13.12981903]
[1730652055044,0.3112443,160.15,160.09,0.35098]
[1730652055045,0.3112443,160.15,160.13,13.12981903]
[1730652055375,0.3112443,160.15,160.14,13.12981903]
[1730652055557,0.3112443,160.15,160.13,13.12981903]
[1730652055871,0.3112443,160.15,160.14,13.12981903]
[1730652056457,0.3112443,160.15,160.14,19.37431903]
[1730652056660,0.3112443,160.15,160.14,6.2445]
[1730652057369,0.3112443,160.15,160.14,19.37431903]
[1730652058269,0.3112443,160.15,160.14,6.2445]
[1730652059355,0.3112443,160.15,160.13,15.6119]
[1730652059548,0.3112443,160.15,160.13,21.8568]
[1730652059757,0.3112443,160.15,160.13,15.6119]
[1730652060271,28.46941903,160.14,160.09,15.6156]
[1730652060869,13.12981903,160.12,160.09,15.6156]
[1730652061066,13.12981903,160.11,160.05,15.6195]
[1730652061269,13.12981903,160.1,160.05,15.6195]
[1730652062171,23.776884,160.12,160.06,15.6191]
[1730652062172,13.12981903,160.11,160.06,15.6191]
[1730652063163,20.0,160.14,160.09,13.12981903]
[1730652063364,20.3112443,160.15,160.09,13.12981903]
[1730652063571,13.44106333,160.15,160.09,13.12981903]
[1730652063861,0.3112443,160.15,160.09,13.12981903]
[1730652064270,13.44106333,160.15,160.09,13.12981903]
[1730652064576,0.3112443,160.15,160.12,13.12981903]
[1730652065278,0.3112443,160.15,160.13,6.2449]
[1730652065960,0.3112443,160.15,160.13,34.98701903]
[1730652066164,0.3112443,160.15,160.14,13.12981903]
[1730652067155,0.3112443,160.15,160.14,39.37431903]
[1730652067562,0.3112443,160.15,160.14,39.62529903]
[1730652067758,0.3112443,160.23,160.15,20.37647]
[1730652068055,0.3112443,160.23,160.2,13.12981903]
[1730652068952,0.3112443,160.23,160.19,13.12981903]
[1730652069156,0.3112443,160.23,160.2,21.8475]
[1730652069374,13.44106333,160.23,160.2,15.6054]
[1730652069580,13.12981903,160.21,160.16,21.8517]
[1730652070573,13.12981903,160.22,160.16,21.8517]
[1730652071280,13.12981903,160.22,160.16,13.12981903]
[1730652072480,0.3112443,160.23,160.19,13.12981903]
[1730652072785,0.3112443,160.23,160.17,13.12981903]
[1730652073174,19.68206333,160.23,160.16,13.12981903]
[1730652073375,13.12981903,160.22,160.17,6.2433]
[1730652073574,13.12981903,160.21,160.17,6.2433]
[1730652074374,43.776884,160.17,160.09,13.12981903]
[1730652074574,13.12981903,160.14,160.08,21.8639]
[1730652074780,13.12981903,160.13,160.08,21.8639]
[1730652074988,15.3396,160.15,160.1,13.12981903]
[1730652075185,15.3396,160.15,160.08,53.0982]
[1730652075488,13.12981903,160.18,160.12,13.12981903]
[1730652075690,13.12981903,160.18,160.11,13.12981903]
[1730652075990,20.98917349,160.16,160.1,20.98917349]
[1730652076287,20.98917349,160.15,160.08,67.84057349]
[1730652076486,20.98917349,160.15,160.08,74.08737349]
[1730652076968,6.2442,160.15,160.06,20.98917349]
[1730652077176,6.2442,160.15,160.05,21.8681]
[1730652077177,20.98917349,160.11,160.05,21.8681]
[1730652077482,20.98917349,160.11,160.05,42.85727349]
[1730652077682,20.98917349,160.11,160.05,21.8681]
[1730652078680,20.98917349,160.1,160.05,21.8681]
[1730652079270,20.98917349,160.11,160.05,21.8681]
[1730652079476,20.98917349,160.08,160.05,21.8681]
[1730652079780,20.98917349,160.1,160.05,21.8681]
[1730652079979,20.98917349,160.09,160.05,21.8681]
[1730652080485,20.98917349,160.1,160.05,15.6201]
[1730652080891,20.98917349,160.09,160.05,15.6201]
[1730652081064,64.76605749,160.1,160.05,15.6201]
[1730652081364,20.0,160.1,160.05,15.6201]
[1730652081561,20.98917349,160.12,160.05,36.60927349]
[1730652081781,23.776884,160.12,160.06,20.98917349]
[1730652081985,44.76605749,160.12,160.06,20.98917349]
[1730652082365,20.98917349,160.13,160.07,20.98917349]
[1730652082589,20.98917349,160.13,160.05,31.24]
[1730652082590,22.2363,160.14,160.09,20.98917349]
[1730652082984,22.2363,160.14,160.08,20.98917349]
[1730652083691,22.2363,160.14,160.09,21.8626]
[1730652083991,49.46997349,160.14,160.09,21.8626]
[1730652084399,20.98917349,160.13,160.09,21.8626]
[1730652084698,21.11466349,160.13,160.06,20.98917349]
[1730652084894,40.98917349,160.12,160.04,21.8694]
[1730652085196,20.0,160.12,160.04,21.8694]
[1730652085494,20.12549,160.13,160.04,21.8694]
[1730652085877,6.2453,160.12,160.04,15.621]
[1730652086094,20.98917349,160.09,160.04,15.621]
[1730652086478,20.98917349,160.08,160.04,15.621]
[1730652086991,20.98917349,160.06,160.02,6.48137657]
[1730652087293,15.8526,160.07,160.01,36.61307349]
[1730652087294,22.2363,160.07,160.01,36.61307349]
[1730652087475,22.2363,160.07,160.02,20.98917349]
[1730652087893,22.2363,160.07,160.03,21.8708]
[1730652088274,15.8526,160.07,160.04,20.98917349]
[1730652088595,15.8526,160.07,160.03,42.85997349]
[1730652088802,15.8526,160.07,160.03,21.8708]
[1730652089985,15.8526,160.07,160.03,15.622]
[1730652090403,36.84177349,160.07,160.0,20.98917349]
[1730652090588,20.98917349,160.06,160.01,6.2495]
[1730652090985,15.8526,160.07,160.03,20.98917349]
[1730652092513,27.23527349,160.1,160.04,42.85857349]
[1730652092811,69.22327349,160.11,160.04,42.85857349]
[1730652092996,20.98917349,160.1,160.04,42.85857349]
[1730652093394,69.22327349,160.11,160.04,42.85857349]
[1730652093800,20.98917349,160.06,160.0,20.98917349]
[1730652093989,20.0,160.08,160.03,20.98917349]
[1730652094188,27.23557349,160.1,160.04,20.98917349]
[1730652094688,20.98917349,160.09,160.03,20.98917349]
[1730652094899,20.98917349,160.08,160.01,20.98917349]
[1730652095099,20.98917349,160.08,160.02,21.8722]
[1730652095611,27.23597349,160.08,160.02,21.8722]
[1730652096109,13.13018676,160.09,160.02,35.00238676]
[1730652096418,13.13018676,160.09,160.03,13.13018676]
[1730652096715,13.13018676,160.09,160.02,35.00238676]
[1730652097609,19.37688676,160.09,160.02,35.00238676]
[1730652098315,20.0,160.08,160.02,35.00238676]
[1730652098903,6.2467,160.09,160.03,13.13018676]
[1730652099315,19.37688676,160.09,160.03,13.13018676]
[1730652099893,13.13018676,160.07,160.02,21.8722]
[1730652100599,13.13018676,160.08,160.02,35.00238676]
[1730652101910,13.13018676,160.08,160.02,28.75318676]
[1730652103117,13.13018676,160.08,160.02,35.00238676]
[1730652103498,13.13018676,160.07,160.02,21.8722]
[1730652104498,13.13018676,160.08,160.02,28.75318676]
[1730652105497,13.13018676,160.04,160.0,6.25]
[1730652106313,13.13018676,160.03,160.0,6.25]
[1730652106517,13.13018676,160.03,160.0,15.625]
[1730652107122,13.13018676,160.04,160.0,15.625]
[1730652107822,33.13018676,160.06,160.0,28.75518676]
[1730652108318,13.13018676,160.05,160.0,15.625]
[1730652108815,33.13018676,160.06,160.0,15.625]
[1730652109022,33.13018676,160.06,160.0,21.875]
[1730652110225,13.13018676,160.05,160.0,21.875]
[1730652110432,13.13018676,160.04,160.0,21.875]
[1730652110923,13.13018676,160.05,160.0,21.875]
[1730652111834,20.0,160.06,159.97,6.48772546]
[1730652111999,13.13018676,160.0,159.97,12.73882546]
[1730652112197,6.4295,160.03,159.95,0.3112443]
[1730652112198,13.13018676,159.98,159.95,0.3112443]
[1730652112424,13.13018676,159.97,159.95,0.3112443]
[1730652112718,20.0,160.03,159.95,22.1928443]
[1730652113029,13.13018676,160.02,159.95,35.32303106]
[1730652113518,13.13018676,160.02,159.95,66.58273106]
[1730652113826,33.13018676,160.03,159.96,13.13018676]
[1730652114926,13.13018676,160.02,159.96,13.13018676]
[1730652115100,13.13018676,160.01,159.95,66.58273106]
[1730652115498,13.13018676,160.02,159.96,13.13018676]
[1730652115921,13.13018676,160.02,159.97,21.879]
[1730652119321,13.13018676,160.02,159.97,15.6279]
[1730652120208,13.13018676,160.02,159.97,21.879]
[1730652120431,13.13018676,160.01,159.97,21.879]
[1730652120735,13.13018676,159.99,159.97,15.6279]
[1730652121119,13.13018676,160.0,159.97,15.6279]
[1730652121319,13.13018676,160.0,159.97,21.879]
[1730652121820,0.12549,160.02,159.97,21.879]
[1730652121821,13.13018676,160.02,159.97,21.879]
[1730652122004,13.13018676,160.03,159.97,35.00918676]
[1730652122641,13.13018676,160.01,159.97,21.879]
[1730652123144,13.13018676,160.02,159.97,21.879]
[1730652123918,13.13018676,160.01,159.97,21.879]
[1730652124617,13.13018676,160.02,159.97,21.879]
[1730652124835,13.13018676,160.01,159.97,21.879]
[1730652125041,13.13018676,160.01,159.97,15.6279]
[1730652125528,13.13018676,159.98,159.95,0.3112443]
[1730652125732,13.13018676,159.98,159.95,6.5630443]
[1730652126235,15.4199,159.96,159.95,0.3112443]
[1730652126430,72.45246076,159.96,159.95,0.3112443]
[1730652127337,78.70396076,159.96,159.95,0.3112443]
[1730652127542,78.95494076,159.96,159.95,0.3112443]
[1730652127726,79.05494076,159.96,159.95,0.3112443]
[1730652127915,79.15494076,159.96,159.95,0.3112443]
[1730652128113,78.70396076,159.96,159.95,0.3112443]
[1730652128340,78.95494076,159.96,159.95,0.3112443]
[1730652128637,79.05494076,159.96,159.95,0.3112443]
[1730652128940,79.05494076,159.96,159.89,6.254]
[1730652128941,44.153354,159.95,159.89,6.254]
[1730652129122,13.13018676,159.91,159.89,6.254]
[1730652129536,13.13018676,159.91,159.88,6.2546]
[1730652130529,13.13018676,159.91,159.88,21.8913]
[1730652133219,13.13018676,159.91,159.87,0.3112443]
[1730652133220,43.902374,159.88,159.87,0.3112443]
[1730652133428,57.38354076,159.88,159.87,0.3112443]
[1730652133655,57.38354076,159.88,159.79,0.3112443]
[1730652133657,44.153354,159.84,159.79,0.3112443]
[1730652133869,13.13018676,159.82,159.79,0.3112443]
[1730652134357,13.13018676,159.82,159.79,6.5691443]
[1730652135062,13.13018676,159.85,159.79,22.2146443]
[1730652135239,13.13018676,159.85,159.79,35.34483106]
[1730652135646,13.13018676,159.85,159.79,22.2146443]
[1730652136552,13.13018676,159.84,159.79,22.2146443]
[1730652141565,13.13018676,159.85,159.79,35.34483106]
[1730652142180,13.13018676,159.85,159.79,22.2146443]
[1730652143176,13.13018676,159.84,159.79,22.2146443]
[1730652144382,13.13018676,159.83,159.79,22.2146443]
[1730652144788,13.13018676,159.84,159.79,22.2146443]
[1730652144995,20.0,159.86,159.8,13.13018676]
[1730652145485,13.13018676,159.85,159.79,35.34483106]
[1730652147085,13.13018676,159.85,159.79,22.2146443]
[1730652147880,33.13018676,159.86,159.8,13.13018676]
[1730652148189,19.30998676,159.92,159.85,13.13018676]
[1730652148362,6.1798,159.92,159.86,13.13018676]
[1730652148570,13.13018676,159.91,159.85,13.13018676]
[1730652149588,19.30998676,159.92,159.85,13.13018676]
[1730652149891,13.13018676,159.91,159.85,13.13018676]
[1730652150092,13.13018676,159.91,159.79,31.7013443]
[1730652150093,37.38354076,159.86,159.79,0.3112443]
[1730652150391,13.13018676,159.82,159.79,0.3112443]
[1730652150569,13.13018676,159.82,159.79,6.5694443]
[1730652150764,13.13018676,159.82,159.79,0.3112443]
[1730652151278,13.13018676,159.81,159.79,0.3112443]
[1730652151480,70.1,159.85,159.79,0.3112443]
[1730652151481,13.13018676,159.82,159.79,0.3112443]
[1730652151675,13.13018676,159.81,159.79,0.3112443]
[1730652152597,13.13018676,159.8,159.79,0.3112443]
[1730652154092,19.38798676,159.8,159.79,0.3112443]
[1730652154710,19.38798676,159.8,159.66,15.6496]
[1730652154711,20.0,159.73,159.66,15.6496]
[1730652154994,57.28354076,159.72,159.63,6.5755443]
[1730652155574,57.38354076,159.72,159.63,6.5755443]
[1730652155778,20.47647,159.71,159.63,0.3112443]
[1730652155996,21.11776454,159.67,159.63,0.3112443]
[1730652156298,21.11776454,159.66,159.63,0.3112443]
[1730652157393,21.11776454,159.65,159.63,0.3112443]
[1730652157799,21.11776454,159.64,159.63,0.3112443]
[1730652159185,65.27111854,159.64,159.63,0.3112443]
[1730652159493,71.53511854,159.64,159.63,0.3112443]
[1730652160199,141.63511854,159.64,159.63,0.3112443]
[1730652160697,141.73511854,159.64,159.63,0.3112443]
[1730652161298,141.73511854,159.64,159.55,0.3112443]
[1730652161299,20.25098,159.6,159.55,0.3112443]
[1730652161475,21.11776454,159.57,159.55,0.3112443]
[1730652161892,21.11776454,159.58,159.55,0.3112443]
[1730652162102,21.11776454,159.59,159.55,0.3112443]
[1730652162275,21.11776454,159.6,159.55,22.2478443]
[1730652162481,21.11776454,159.6,159.55,22.1044635]
[1730652163502,21.11776454,159.62,159.56,21.11776454]
[1730652163705,21.11776454,159.62,159.55,43.22222804]
[1730652163899,21.11776454,159.62,159.56,21.11776454]
[1730652164704,21.11776454,159.62,159.55,22.1044635]
[1730652164705,21.11776454,159.64,159.58,21.11776454]
[1730652164908,120.6638,159.65,159.59,21.11776454]
[1730652164909,21.11776454,159.65,159.59,21.11776454]
[1730652165407,21.11776454,159.64,159.58,36.78386454]
[1730652165587,21.11776454,159.62,159.58,15.6661]
[1730652165906,21.11776454,159.61,159.58,15.6661]
[1730652166497,21.11776454,159.6,159.58,15.6661]
[1730652167184,21.11776454,159.59,159.58,15.6661]
[1730652168185,21.11776454,159.59,159.55,6.4353635]
[1730652168492,21.11776454,159.58,159.55,6.4353635]
[1730652168692,21.11776454,159.59,159.55,6.4353635]
[1730652169093,21.11776454,159.58,159.55,6.4353635]
[1730652170002,21.11776454,159.59,159.55,22.1043635]
[1730652170391,21.11776454,159.6,159.55,22.1043635]
[1730652172113,21.11776454,159.59,159.55,22.1043635]
[1730652172612,21.11776454,159.6,159.55,22.1043635]
[1730652173503,21.11776454,159.61,159.55,43.22212804]
[1730652174315,21.11776454,159.6,159.55,22.1043635]
[1730652175204,21.11776454,159.61,159.55,43.22212804]
[1730652175604,16.1448,159.59,159.55,15.8368635]
[1730652175922,37.26256454,159.59,159.55,15.8368635]
[1730652176208,13.21418667,159.58,159.55,15.8368635]
[1730652176388,16.1448,159.59,159.55,15.8368635]
[1730652176389,29.35898667,159.59,159.55,6.4353635]
[1730652177205,23.776884,159.58,159.55,0.1678635]
[1730652177507,36.99107067,159.58,159.55,0.1678635]
[1730652178208,16.1448,159.59,159.55,0.1678635]
[1730652178407,16.1448,159.59,159.55,6.4352635]
[1730652178612,16.1448,159.59,159.55,22.1042635]
[1730652178823,20.0,159.61,159.55,35.31845017]
[1730652179113,33.21418667,159.61,159.55,35.31845017]
[1730652179819,33.21418667,159.61,159.55,22.1042635]
[1730652180115,1.0,159.6,159.55,22.1042635]
[1730652180296,1.0,159.6,159.55,35.31845017]
[1730652180486,1.0,159.6,159.55,22.1042635]
[1730652180693,1.0,159.6,159.55,35.31845017]
[1730652181612,1.0,159.6,159.57,13.21418667]
[1730652181819,1.0,159.6,159.59,13.21418667]
[1730652182999,1.0,159.6,159.59,13.33967667]
[1730652183214,1.0,159.6,159.59,33.59065667]